bitfinex-derivatives/quotes_BTCF0:USTF0_20250828
["timestamp","ask_amount","ask_price","bid_price","bid_amount"]
[1756412109026,0.98903198,112050.0,112040.0,0.03906]
[1756412109221,0.98903198,112050.0,112040.0,0.58218988]
[1756412109723,0.14811198,112050.0,112040.0,0.1283089]
[1756412109922,0.98903198,112050.0,112040.0,0.67143878]
[1756412110928,0.14811198,112050.0,112040.0,0.67143878]
[1756412111132,0.98903198,112050.0,112040.0,0.67143878]
[1756412111431,0.99003198,112050.0,112040.0,0.67143878]
[1756412111621,0.99003198,112050.0,112040.0,0.1283089]
[1756412111820,0.99003198,112050.0,112040.0,0.67143878]
[1756412112229,1.53316186,112050.0,112040.0,0.58218988]
[1756412112729,1.53416186,112050.0,112040.0,0.58218988]
[1756412113529,0.99103198,112050.0,112040.0,0.58218988]
[1756412113923,1.53416186,112050.0,112040.0,0.58218988]
[1756412114330,0.99103198,112050.0,112040.0,0.58218988]
[1756412115333,0.99103198,112050.0,112040.0,0.67143878]
[1756412115827,0.15011198,112050.0,112040.0,0.67143878]
[1756412116028,0.99091198,112050.0,112040.0,0.1283089]
[1756412116227,0.99091198,112050.0,112040.0,0.67143878]
[1756412117537,0.99091198,112050.0,112040.0,0.1283089]
[1756412117935,0.15011198,112050.0,112040.0,0.67143878]
[1756412118144,0.99091198,112050.0,112040.0,0.67143878]
[1756412118637,0.99091198,112050.0,112040.0,0.1283089]
[1756412118834,0.99091198,112050.0,112040.0,0.67143878]
[1756412119032,0.98991198,112050.0,112040.0,0.67143878]
[1756412119539,0.98891198,112050.0,112040.0,0.67143878]
[1756412120036,0.98991198,112050.0,112040.0,0.67143878]
[1756412120339,0.99091198,112050.0,112040.0,0.67143878]
[1756412121540,0.99091198,112050.0,112040.0,0.1283089]
[1756412121939,0.99091198,112050.0,112040.0,0.67143878]
[1756412122340,0.99091198,112050.0,112040.0,0.1283089]
[1756412122540,0.99091198,112050.0,112040.0,0.67143878]
[1756412122741,0.99091198,112050.0,112040.0,0.1283089]
[1756412123040,0.99091198,112050.0,112040.0,0.67143878]
[1756412123339,0.99091198,112050.0,112040.0,0.1283089]
[1756412123540,0.99091198,112050.0,112040.0,0.67143878]
[1756412124440,1.53404186,112050.0,112040.0,0.67143878]
[1756412126244,0.69324186,112050.0,112040.0,0.67143878]
[1756412126440,0.99071198,112050.0,112040.0,0.67143878]
[1756412126945,0.99071198,112050.0,112040.0,0.1283089]
[1756412127144,0.99071198,112050.0,112040.0,0.67143878]
[1756412131948,0.15011198,112050.0,112040.0,0.1283089]
[1756412132149,0.99055198,112050.0,112040.0,0.67143878]
[1756412134150,0.99055198,112050.0,112040.0,0.1283089]
[1756412134549,0.15011198,112050.0,112040.0,0.67143878]
[1756412134749,0.99039198,112050.0,112040.0,0.67143878]
[1756412135148,0.99039198,112050.0,112040.0,0.1283089]
[1756412135350,0.99039198,112050.0,112040.0,0.67143878]
[1756412135646,0.99035198,112050.0,112040.0,0.1283089]
[1756412135846,0.99035198,112050.0,112040.0,0.67143878]
[1756412136046,0.15011198,112050.0,112040.0,0.67143878]
[1756412136246,0.99035198,112050.0,112040.0,0.67143878]
[1756412138255,0.15011198,112050.0,112040.0,0.67143878]
[1756412138460,0.99027198,112050.0,112040.0,0.67143878]
[1756412140459,0.90095098,112050.0,112040.0,1.21456866]
[1756412140760,0.90095098,112050.0,112040.0,0.67143878]
[1756412142365,0.99019198,112050.0,112040.0,0.67143878]
[1756412142859,0.90095098,112050.0,112040.0,1.46456866]
[1756412143065,0.90095098,112050.0,112040.0,0.92143878]
[1756412143560,0.87684098,112050.0,112040.0,0.92143878]
[1756412143764,0.90140098,112050.0,112040.0,0.92143878]
[1756412144260,0.99064198,112050.0,112040.0,0.92143878]
[1756412148365,0.06132098,112050.0,112040.0,1.21456866]
[1756412148757,0.03676098,112050.0,112040.0,1.21456866]
[1756412148964,0.03676098,112050.0,112040.0,1.46456866]
[1756412149265,0.02030098,112050.0,112040.0,1.46456866]
[1756412152066,0.02030098,112050.0,112040.0,2.30428866]
[1756412153167,0.02030098,112050.0,112040.0,2.05428866]
[1756412155768,0.02030098,112050.0,112040.0,2.30428866]
[1756412158171,0.02030098,112050.0,112040.0,1.46456866]
[1756412158370,0.02030098,112050.0,112040.0,2.30404866]
[1756412159171,0.02030098,112050.0,112040.0,2.30400866]
[1756412159471,0.02030098,112050.0,112040.0,2.30396866]
[1756412160171,0.02030098,112050.0,112040.0,1.46456866]
[1756412160372,0.02030098,112050.0,112040.0,2.30396866]
[1756412163168,0.02030098,112050.0,112040.0,1.2177089]
[1756412163474,0.02030098,112050.0,112040.0,2.30396866]
[1756412165776,0.02030098,112050.0,112040.0,1.46456866]
[1756412165976,0.02030098,112050.0,112040.0,2.30372866]
[1756412167874,0.28894267,112080.0,112070.0,0.089225]
[1756412168075,0.65396,112080.0,112070.0,0.126695]
[1756412168277,0.30396,112080.0,112070.0,1.21295476]
[1756412168577,0.30396,112080.0,112070.0,1.24192575]
[1756412169381,0.30796,112080.0,112070.0,1.24292575]
[1756412170380,0.31196,112080.0,112070.0,1.24292575]
[1756412171582,0.2718,112080.0,112070.0,2.08188575]
[1756412171774,0.008,112080.0,112070.0,0.99562599]
[1756412171977,0.008,112080.0,112070.0,2.08188575]
[1756412172880,0.004,112080.0,112070.0,1.24292575]
[1756412173079,0.004,112080.0,112070.0,2.08180575]
[1756412173783,0.04016,112090.0,112080.0,0.1266871]
[1756412173980,0.04016,112090.0,112080.0,1.21294686]
[1756412174384,0.05016,112090.0,112080.0,1.21294686]
[1756412175386,0.05116,112090.0,112080.0,1.21294686]
[1756412175884,0.04116,112090.0,112080.0,1.21294686]
[1756412177291,0.12116,112090.0,112080.0,1.21294686]
[1756412178687,0.2103691,112090.0,112080.0,1.21294686]
[1756412178886,0.75349898,112090.0,112080.0,0.58059988]
[1756412179088,0.75349898,112090.0,112080.0,0.64745698]
[1756412179389,1.02349898,112090.0,112080.0,0.66981698]
[1756412181292,0.4803691,112090.0,112080.0,0.6084007]
[1756412182789,0.4803691,112090.0,112080.0,0.1266871]
[1756412182990,0.4803691,112090.0,112080.0,0.6084007]
[1756412185693,0.4803691,112090.0,112080.0,0.1266871]
[1756412185892,0.4803691,112090.0,112080.0,0.6084007]
[1756412189896,1.3184891,112090.0,112080.0,0.6084007]
[1756412190596,1.3184891,112090.0,112080.0,0.1266871]
[1756412190796,1.3184891,112090.0,112080.0,0.6084007]
[1756412191294,1.3184091,112090.0,112080.0,0.6084007]
[1756412191493,0.4803691,112090.0,112080.0,0.6084007]
[1756412191693,1.3184091,112090.0,112080.0,0.6084007]
[1756412193198,1.3184091,112090.0,112080.0,0.1266871]
[1756412193400,1.3184091,112090.0,112080.0,0.6084007]
[1756412194901,1.3184091,112090.0,112080.0,0.5191836]
[1756412195498,1.3184091,112090.0,112080.0,0.6084007]
[1756412196091,1.3184091,112090.0,112080.0,0.1266871]
[1756412196299,1.3184091,112090.0,112080.0,0.6084007]
[1756412196696,1.3184091,112090.0,112080.0,0.1266871]
[1756412196995,1.3184091,112090.0,112080.0,0.6084007]
[1756412197199,1.3184091,112090.0,112080.0,0.5191836]
[1756412197501,1.3184091,112090.0,112080.0,0.4968236]
[1756412197998,0.14634731,112080.0,112070.0,0.12496347]
[1756412198199,0.14634731,112080.0,112070.0,0.01982527]
[1756412198200,0.24634731,112080.0,112070.0,0.01982527]
[1756412198402,0.47634731,112080.0,112070.0,0.01982527]
[1756412198602,0.72634731,112080.0,112070.0,0.01982527]
[1756412199503,0.72634731,112080.0,112070.0,0.02082527]
[1756412200403,1.20806091,112080.0,112070.0,0.02082527]
[1756412200801,1.20906091,112080.0,112070.0,0.02082527]
[1756412201599,1.21006091,112080.0,112070.0,0.01982527]
[1756412202404,1.21106091,112080.0,112070.0,0.01982527]
[1756412203306,1.27147129,112080.0,112070.0,0.56194925]
[1756412204497,1.27147129,112080.0,112070.0,0.01982527]
[1756412204697,0.72934731,112080.0,112070.0,0.01982527]
[1756412205008,1.27147129,112080.0,112070.0,0.01982527]
[1756412205397,0.72934731,112080.0,112070.0,0.01982527]
[1756412205599,1.27147129,112080.0,112070.0,0.01982527]
[1756412206500,1.81359527,112080.0,112070.0,0.01982527]
[1756412207200,1.27147129,112080.0,112070.0,0.01982527]
[1756412209405,0.72934731,112080.0,112070.0,0.01982527]
[1756412209605,1.27147129,112080.0,112070.0,0.01982527]
[1756412210206,2.10891129,112080.0,112070.0,0.01982527]
[1756412210906,2.65103527,112080.0,112070.0,0.01982527]
[1756412211107,2.10891129,112080.0,112070.0,0.01982527]
[1756412212210,2.40103527,112080.0,112070.0,0.01982527]
[1756412212908,0.1283231,112060.0,112050.0,0.03828]
[1756412213102,1.52547483,112060.0,112050.0,0.58040398]
[1756412214208,1.53446408,112060.0,112050.0,0.58040398]
[1756412214707,1.53446408,112060.0,112050.0,0.58140398]
[1756412215611,1.53446408,112060.0,112050.0,0.58040398]
[1756412216012,0.9923401,112060.0,112050.0,0.58040398]
[1756412216310,0.9933401,112060.0,112050.0,0.58040398]
[1756412217410,0.1560601,112060.0,112050.0,0.58040398]
[1756412217611,0.9932201,112060.0,112050.0,0.58040398]
[1756412219714,0.9932201,112060.0,112050.0,0.55804398]
[1756412220223,1.53534408,112060.0,112050.0,0.58040398]
[1756412220513,1.53522408,112060.0,112050.0,0.55804398]
[1756412220711,0.9931001,112060.0,112050.0,0.58040398]
[1756412220909,1.53522408,112060.0,112050.0,0.58040398]
[1756412221109,0.9931001,112060.0,112050.0,0.58040398]
[1756412221317,1.53522408,112060.0,112050.0,0.58040398]
[1756412222617,0.9931001,112060.0,112050.0,0.58040398]
[1756412222818,1.53522408,112060.0,112050.0,0.58040398]
[1756412223116,1.53522408,112060.0,112050.0,0.03828]
[1756412223318,1.53522408,112060.0,112050.0,0.58040398]
[1756412224016,0.9931001,112060.0,112050.0,0.58040398]
[1756412224216,1.53522408,112060.0,112050.0,0.58040398]
[1756412226017,1.53522408,112060.0,112050.0,0.55804398]
[1756412226414,0.0892411,112050.0,112040.0,0.1281124]
[1756412226612,0.0892491,112040.0,112030.0,0.05898177]
[1756412226812,0.9650791,112040.0,112030.0,0.05898177]
[1756412227008,0.9650791,112040.0,112030.0,0.60110575]
[1756412228020,0.9650791,112040.0,112030.0,0.60410575]
[1756412229324,0.9660791,112040.0,112030.0,0.60410575]
[1756412229512,0.9660791,112040.0,112030.0,0.05898177]
[1756412229712,0.9660791,112040.0,112030.0,0.03662177]
[1756412229916,0.9660791,112040.0,112030.0,0.57874575]
[1756412230116,0.9660791,112040.0,112030.0,0.60110575]
[1756412230317,0.98408261,112040.0,112030.0,0.58099398]
[1756412231219,0.14724261,112040.0,112030.0,0.58099398]
[1756412231421,0.98400261,112040.0,112030.0,0.58099398]
[1756412232721,0.14724261,112040.0,112030.0,0.67025098]
[1756412232921,0.98392261,112040.0,112030.0,0.67025098]
[1756412233215,0.98392261,112040.0,112030.0,0.128127]
[1756412233520,0.98392261,112040.0,112030.0,0.67025098]
[1756412234720,1.05617529,112040.0,112030.0,0.67025098]
[1756412237424,1.05617529,112040.0,112030.0,0.128127]
[1756412237723,1.05617529,112040.0,112030.0,0.67025098]
[1756412238718,1.05617529,112040.0,112030.0,0.128127]
[1756412238919,1.05617529,112040.0,112030.0,0.67025098]
[1756412239623,0.21949529,112040.0,112030.0,0.67025098]
[1756412239823,1.05593529,112040.0,112030.0,0.67025098]
[1756412241627,0.98368261,112040.0,112030.0,0.67025098]
[1756412243228,0.14724261,112040.0,112030.0,0.67025098]
[1756412243429,0.98356261,112040.0,112030.0,0.67025098]
[1756412244024,0.98352261,112040.0,112030.0,0.67025098]
[1756412244328,0.98348261,112040.0,112030.0,0.67025098]
[1756412246129,1.52560659,112040.0,112030.0,0.01651]
[1756412246325,0.98348261,112040.0,112030.0,0.58099398]
[1756412246627,1.52560659,112040.0,112030.0,0.58099398]
[1756412247130,1.52560659,112040.0,112030.0,0.55863398]
[1756412247519,0.98348261,112040.0,112030.0,0.55863398]
[1756412247730,1.52560659,112040.0,112030.0,0.55863398]
[1756412250330,1.52560659,112040.0,112030.0,0.58099398]
[1756412252035,1.52560659,112040.0,112030.0,0.55863398]
[1756412253637,1.52560659,112040.0,112030.0,0.58099398]
[1756412254028,1.52560659,112040.0,112030.0,0.55863398]
[1756412254230,1.52560659,112040.0,112030.0,0.01651]
[1756412254536,1.52560659,112040.0,112030.0,0.55863398]
[1756412255239,0.68936659,112040.0,112030.0,0.55863398]
[1756412255535,1.52524659,112040.0,112030.0,0.55863398]
[1756412257138,0.98312261,112040.0,112030.0,0.55863398]
[1756412257332,0.14724261,112040.0,112030.0,0.03887]
[1756412257533,1.52520659,112040.0,112030.0,0.55863398]
[1756412257741,1.52520659,112040.0,112030.0,0.58099398]
[1756412258839,1.52512659,112040.0,112030.0,0.58099398]
[1756412259943,0.68936659,112040.0,112030.0,0.58099398]
[1756412260136,1.52504659,112040.0,112030.0,0.58099398]
[1756412260435,0.68936659,112040.0,112030.0,0.58099398]
[1756412260640,1.52500659,112040.0,112030.0,0.58099398]
[1756412262642,0.68936659,112040.0,112030.0,0.58099398]
[1756412262842,1.52488659,112040.0,112030.0,0.58099398]
[1756412265847,0.68936659,112040.0,112030.0,0.58099398]
[1756412266043,1.52472659,112040.0,112030.0,0.58099398]
[1756412267651,0.14724261,112040.0,112030.0,0.6904436]
[1756412267853,1.52464659,112040.0,112030.0,0.6904436]
[1756412270453,0.98252261,112040.0,112030.0,0.6904436]
[1756412270750,1.52464659,112040.0,112030.0,0.6904436]
[1756412270947,1.52464659,112040.0,112030.0,0.12595962]
[1756412271154,1.52464659,112040.0,112030.0,0.6011866]
[1756412271744,1.52464659,112040.0,112030.0,0.6904436]
[1756412272554,0.98252261,112040.0,112030.0,0.6904436]
[1756412272854,1.52464659,112040.0,112030.0,0.6904436]
[1756412274455,0.98252261,112040.0,112030.0,0.6904436]
[1756412274756,1.52464659,112040.0,112030.0,0.6904436]
[1756412276156,0.98252261,112040.0,112030.0,0.6904436]
[1756412276354,1.52432659,112040.0,112030.0,0.14831962]
[1756412276744,1.52432659,112040.0,112030.0,0.6904436]
[1756412277858,1.52432659,112040.0,112030.0,0.02019262]
[1756412278157,1.52432659,112040.0,112030.0,0.5623166]
[1756412278659,0.98220261,112040.0,112030.0,0.6666036]
[1756412278852,1.52432659,112040.0,112030.0,0.5773466]
[1756412279047,1.52432659,112040.0,112030.0,0.6515736]
[1756412279358,1.52432659,112040.0,112030.0,0.6666036]
[1756412279750,1.52432659,112040.0,112030.0,0.5623166]
[1756412280156,1.52432659,112040.0,112030.0,0.6515736]
[1756412280359,1.52432659,112040.0,112030.0,0.6666036]
[1756412280757,1.52432659,112040.0,112030.0,0.6515736]
[1756412280959,1.52432659,112040.0,112030.0,0.6676336]
[1756412281363,0.98220261,112040.0,112030.0,0.14786962]
[1756412281567,1.52432659,112040.0,112030.0,0.6899936]
[1756412282062,1.52432659,112040.0,112030.0,0.14786962]
[1756412282258,1.52432659,112040.0,112030.0,0.6899936]
[1756412282963,0.98220261,112040.0,112030.0,0.6899936]
[1756412283261,1.52432659,112040.0,112030.0,0.6899936]
[1756412283462,0.68936659,112040.0,112030.0,0.6899936]
[1756412283764,1.52400659,112040.0,112030.0,0.6899936]
[1756412285064,0.98188261,112040.0,112030.0,0.6899936]
[1756412285465,1.52400659,112040.0,112030.0,0.6899936]
[1756412287773,0.14724261,112040.0,112030.0,0.6899936]
[1756412288066,0.98168261,112040.0,112030.0,0.14786962]
[1756412288265,1.52380659,112040.0,112030.0,0.6899936]
[1756412289267,0.98168261,112040.0,112030.0,0.6899936]
[1756412289469,1.52380659,112040.0,112030.0,0.6899936]
[1756412289670,0.98168261,112040.0,112030.0,0.6899936]
[1756412289870,1.52280659,112040.0,112030.0,0.6899936]
[1756412290070,0.98068261,112040.0,112030.0,0.6899936]
[1756412290472,1.52280659,112040.0,112030.0,0.6676336]
[1756412290672,1.52380659,112040.0,112030.0,0.6676336]
[1756412290869,0.03426351,112040.0,112030.0,0.9399936]
[1756412291275,0.01900351,112040.0,112030.0,0.9399936]
[1756412292068,0.05941351,112040.0,112030.0,0.9399936]
[1756412292268,0.05941351,112040.0,112030.0,0.9429936]
[1756412292470,0.05841351,112040.0,112030.0,0.9439936]
[1756412297275,0.14766251,112040.0,112030.0,0.40186962]
[1756412297474,0.14766251,112040.0,112030.0,0.9439936]
[1756412297781,0.68978649,112040.0,112030.0,0.6939936]
[1756412298277,0.14766251,112040.0,112030.0,0.6939936]
[1756412298470,0.14766251,112040.0,112030.0,0.6929936]
[1756412298676,0.14766251,112040.0,112030.0,0.6939936]
[1756412298876,0.14766251,112040.0,112030.0,0.6909936]
[1756412299076,0.14766251,112040.0,112030.0,0.6919936]
[1756412299281,0.14866251,112040.0,112030.0,0.6909936]
[1756412299779,0.14866251,112040.0,112030.0,0.14786962]
[1756412299981,0.14866251,112040.0,112030.0,0.6899936]
[1756412302084,0.12380251,112040.0,112030.0,0.6899936]
[1756412302284,0.001,112040.0,112030.0,2.31603758]
[1756412302874,0.2638,112050.0,112040.0,0.126669]
[1756412303083,0.2638,112050.0,112040.0,1.21091696]
[1756412305082,0.04041,112070.0,112060.0,0.1266531]
[1756412305383,0.89229011,112080.0,112070.0,0.1052851]
[1756412305583,0.89229011,112080.0,112070.0,0.60831354]
[1756412306488,0.89229011,112080.0,112070.0,0.60931354]
[1756412307187,0.89229011,112080.0,112070.0,0.61031354]
[1756412308490,0.01555,112080.0,112070.0,0.61031354]
[1756412310187,0.0401,112080.0,112070.0,0.61031354]
[1756412310689,0.9628792,112090.0,112080.0,0.1259072]
[1756412310993,1.3428792,112090.0,112080.0,0.60757564]
[1756412311483,1.25367,112090.0,112080.0,0.60757564]
[1756412311688,0.42007,112090.0,112080.0,0.60757564]
[1756412312188,0.42207,112090.0,112080.0,0.60757564]
[1756412312590,0.39752,112090.0,112080.0,0.60757564]
[1756412312790,0.5112792,112090.0,112080.0,0.60757564]
[1756412313690,0.42207,112090.0,112080.0,0.60757564]
[1756412314294,0.5112792,112090.0,112080.0,0.60757564]
[1756412314793,0.42207,112090.0,112080.0,0.60757564]
[1756412314994,0.5112792,112090.0,112080.0,0.60757564]
[1756412315493,0.42207,112090.0,112080.0,0.60757564]
[1756412316190,0.04207,112090.0,112080.0,1.08924408]
[1756412316594,0.01752,112090.0,112080.0,1.08924408]
[1756412317704,0.04207,112090.0,112080.0,0.1259072]
[1756412318004,0.04207,112090.0,112080.0,1.08924408]
[1756412318297,0.01752,112090.0,112080.0,1.08924408]
[1756412318601,0.04207,112090.0,112080.0,1.08924408]
[1756412318997,0.002,112090.0,112080.0,1.08924408]
[1756412319200,0.02655,112090.0,112080.0,1.08924408]
[1756412319999,0.1312792,112090.0,112080.0,0.60757564]
[1756412320398,0.1512792,112090.0,112080.0,0.60757564]
[1756412322101,0.06207,112090.0,112080.0,0.60757564]
[1756412323407,0.09207,112090.0,112080.0,0.60757564]
[1756412323704,0.09207,112090.0,112080.0,1.08924408]
[1756412324808,0.09207,112090.0,112080.0,0.60757564]
[1756412325307,0.09207,112090.0,112080.0,1.08924408]
[1756412325505,0.04207,112090.0,112080.0,1.08924408]
[1756412326510,0.09207,112090.0,112080.0,1.08924408]
[1756412327812,0.04207,112090.0,112080.0,1.08924408]
[1756412328310,0.09207,112090.0,112080.0,1.08924408]
[1756412328705,0.06752,112090.0,112080.0,1.08924408]
[1756412328906,0.01752,112090.0,112080.0,0.1259072]
[1756412329210,0.04207,112090.0,112080.0,1.08924408]
[1756412329911,0.01752,112090.0,112080.0,1.08924408]
[1756412330411,0.07752,112090.0,112080.0,1.08924408]
[1756412331408,0.07752,112090.0,112080.0,1.20947396]
[1756412339316,0.062,112090.0,112080.0,1.20947396]
[1756412339721,0.07752,112090.0,112080.0,0.1259072]
[1756412339920,0.07752,112090.0,112080.0,1.20947396]
[1756412340315,0.1667291,112090.0,112080.0,1.20947396]
[1756412340521,0.1897191,112090.0,112080.0,1.20947396]
[1756412340822,0.1667291,112090.0,112080.0,1.20947396]
[1756412341224,0.07752,112090.0,112080.0,1.20947396]
[1756412341420,0.1667291,112090.0,112080.0,1.20947396]
[1756412341618,0.062,112090.0,112080.0,1.20947396]
[1756412343125,0.002,112090.0,112080.0,1.20947396]
[1756412345429,0.002,112090.0,112080.0,1.45947396]
[1756412346528,0.002,112090.0,112080.0,2.29159396]
[1756412348132,0.002,112090.0,112080.0,2.83337734]
[1756412348527,0.002,112090.0,112080.0,2.29159396]
[1756412348826,0.002,112090.0,112080.0,2.83337734]
[1756412349131,0.002,112090.0,112080.0,2.29159396]
[1756412349632,0.002,112090.0,112080.0,2.83337734]
[1756412350135,0.002,112090.0,112080.0,2.29159396]
[1756412350631,0.002,112090.0,112080.0,2.83337734]
[1756412350936,0.3912055,112110.0,112100.0,0.1236512]
[1756412351137,0.7612055,112110.0,112100.0,1.20721796]
[1756412351734,0.7612055,112110.0,112100.0,0.1236512]
[1756412352028,0.7612055,112110.0,112100.0,0.66543458]
[1756412352233,0.7642055,112110.0,112100.0,0.66543458]
[1756412352423,0.7682055,112110.0,112100.0,0.66543458]
[1756412354237,0.7682055,112110.0,112100.0,0.1236512]
[1756412354538,0.7682055,112110.0,112100.0,0.66543458]
[1756412356942,0.7682055,112110.0,112100.0,0.1236512]
[1756412357142,0.7682055,112110.0,112100.0,0.66543458]
[1756412357436,0.7652055,112110.0,112100.0,0.66543458]
[1756412357742,0.7662055,112110.0,112100.0,0.66543458]
[1756412358442,0.7632055,112110.0,112100.0,0.66543458]
[1756412363142,1.5948055,112110.0,112100.0,0.66543458]
[1756412364848,1.5948055,112110.0,112100.0,0.67423731]
[1756412366053,1.5948055,112110.0,112100.0,0.66543458]
[1756412367046,0.03204719,112130.0,112120.0,0.0891852]
[1756412367249,0.38821,112130.0,112120.0,1.20720196]
[1756412367547,0.86961,112130.0,112120.0,1.20720196]
[1756412368347,0.91961,112130.0,112120.0,1.20720196]
[1756412368749,0.91961,112130.0,112120.0,1.21601542]
[1756412369348,0.92561,112130.0,112120.0,1.0948539]
[1756412369850,0.09421,112130.0,112120.0,1.0948539]
[1756412370047,0.92553,112130.0,112120.0,1.0948539]
[1756412370246,0.92453,112130.0,112120.0,1.0948539]
[1756412371240,0.92153,112130.0,112120.0,1.0948539]
[1756412371444,0.92353,112130.0,112120.0,1.0948539]
[1756412371850,0.09221,112130.0,112120.0,1.0948539]
[1756412372049,0.92349,112130.0,112120.0,1.0948539]
[1756412374852,0.09221,112130.0,112120.0,1.0948539]
[1756412375053,0.92333,112130.0,112120.0,1.0948539]
[1756412375753,0.09221,112130.0,112120.0,1.0948539]
[1756412375954,0.87329,112130.0,112120.0,1.0948539]
[1756412382449,0.87329,112130.0,112120.0,0.13244866]
[1756412382656,0.87329,112130.0,112120.0,1.0948539]
[1756412383751,0.9624672,112130.0,112120.0,1.08604044]
[1756412384256,0.9624672,112130.0,112120.0,1.06668044]
[1756412384455,1.3224672,112130.0,112120.0,1.05159044]
[1756412384855,1.3224672,112130.0,112120.0,1.07095044]
[1756412385553,1.3224672,112130.0,112120.0,0.48120262]
[1756412385754,0.1285552,112120.0,112110.0,0.00881159]
[1756412386057,0.1285552,112120.0,112110.0,0.57039582]
[1756412386253,0.1285552,112120.0,112110.0,0.60593582]
[1756412386554,0.4785552,112120.0,112110.0,0.60593582]
[1756412388654,0.4795552,112120.0,112110.0,0.60593582]
[1756412391058,1.3100752,112120.0,112110.0,0.60593582]
[1756412392764,1.86659752,112150.0,112130.0,0.0891746]
[1756412393063,0.9348248,112140.0,112130.0,0.1247146]
[1756412393358,0.9348248,112140.0,112130.0,0.1053546]
[1756412393359,0.9590648,112140.0,112130.0,0.1053546]
[1756412393552,0.9790648,112140.0,112130.0,0.0891746]
[1756412393953,0.1285473,112130.0,112120.0,0.1247198]
[1756412394152,0.1285473,112130.0,112120.0,0.58656242]
[1756412394760,0.1285473,112130.0,112120.0,0.60592242]
[1756412395062,0.9589873,112130.0,112120.0,0.60592242]
[1756412395260,0.9619873,112130.0,112120.0,0.60592242]
[1756412395461,1.0319873,112130.0,112120.0,0.60592242]
[1756412395959,0.9619473,112130.0,112120.0,0.60592242]
[1756412396860,0.1315473,112130.0,112120.0,0.60592242]
[1756412397060,0.9618673,112130.0,112120.0,0.60592242]
[1756412397361,0.9618673,112130.0,112120.0,1.08712504]
[1756412398461,0.9718673,112130.0,112120.0,1.08712504]
[1756412399461,0.9718673,112130.0,112120.0,0.1247198]
[1756412399661,0.9718673,112130.0,112120.0,0.60592242]
[1756412399959,0.88269,112130.0,112120.0,0.60592242]
[1756412400155,0.87261,112130.0,112120.0,1.08712504]
[1756412400356,0.84837,112130.0,112120.0,1.43712504]
[1756412400549,0.83324,112130.0,112120.0,1.43712504]
[1756412400756,0.003,112130.0,112120.0,1.68712504]
[1756412402164,0.003,112130.0,112120.0,2.51732504]
[1756412402866,0.003,112130.0,112120.0,1.5549198]
[1756412403066,0.003,112130.0,112120.0,2.51732504]
[1756412404467,0.01543,112140.0,112130.0,0.1248573]
[1756412404667,0.01543,112140.0,112130.0,0.95605992]
[1756412405566,0.01743,112140.0,112130.0,0.95605992]
[1756412405766,0.02043,112140.0,112130.0,0.95605992]
[1756412406768,0.04422,112140.0,112130.0,0.60605992]
[1756412406972,0.02043,112140.0,112130.0,0.94605992]
[1756412407664,0.04422,112140.0,112130.0,0.94605992]
[1756412407868,0.1333893,112140.0,112130.0,0.60605992]
[1756412408467,0.1833893,112140.0,112130.0,0.60605992]
[1756412408775,0.1833893,112140.0,112130.0,0.67669942]
[1756412410176,0.09422,112140.0,112130.0,1.02669942]
[1756412411474,0.04422,112140.0,112130.0,1.02669942]
[1756412411878,0.02043,112140.0,112130.0,1.02669942]
[1756412412574,0.04422,112140.0,112130.0,0.99669942]
[1756412412781,0.04422,112140.0,112130.0,1.01669942]
[1756412413377,0.02043,112140.0,112130.0,1.01669942]
[1756412413680,0.04422,112140.0,112130.0,1.01669942]
[1756412413881,0.04422,112140.0,112130.0,1.02669942]
[1756412414077,0.04422,112140.0,112130.0,0.67669942]
[1756412414380,0.04422,112140.0,112130.0,1.02669942]
[1756412414880,0.02043,112140.0,112130.0,1.02669942]
[1756412415782,0.02043,112140.0,112130.0,1.00669942]
[1756412416080,0.04422,112140.0,112130.0,0.67669942]
[1756412416281,0.04422,112140.0,112130.0,1.02669942]
[1756412416984,0.1333893,112140.0,112130.0,1.02669942]
[1756412417283,0.1333893,112140.0,112130.0,0.67669942]
[1756412417483,0.1833893,112140.0,112130.0,0.67669942]
[1756412417683,0.1833893,112140.0,112130.0,0.99669942]
[1756412418684,0.1833893,112140.0,112130.0,0.67669942]
[1756412418884,0.1333893,112140.0,112130.0,0.67669942]
[1756412419485,0.1833893,112140.0,112130.0,0.67669942]
[1756412421783,0.1833893,112140.0,112130.0,0.58752212]
[1756412421978,0.1833893,112140.0,112130.0,0.67669942]
[1756412423086,0.4333893,112140.0,112130.0,0.67669942]
[1756412424684,0.34422,112140.0,112130.0,0.67669942]
[1756412425895,0.4333893,112140.0,112130.0,1.00669942]
[1756412426496,0.34422,112140.0,112130.0,1.00669942]
[1756412426891,0.09422,112140.0,112130.0,1.00669942]
[1756412427092,0.07043,112140.0,112130.0,1.00669942]
[1756412427295,0.09422,112140.0,112130.0,1.00669942]
[1756412428386,0.1833893,112140.0,112130.0,1.02669942]
[1756412429595,0.4233893,112140.0,112130.0,1.02669942]
[1756412430495,0.2133893,112140.0,112130.0,1.02669942]
[1756412430995,0.2133893,112140.0,112130.0,0.99669942]
[1756412431896,0.085,112140.0,112130.0,0.99669942]
[1756412432087,0.1284261,112160.0,112150.0,0.1242691]
[1756412432286,0.4984261,112160.0,112150.0,0.60547172]
[1756412433699,0.4984261,112160.0,112150.0,0.61440634]
[1756412433898,0.5064261,112160.0,112150.0,0.61440634]
[1756412434098,0.5064261,112160.0,112150.0,0.60547172]
[1756412434300,0.41727,112160.0,112150.0,0.60547172]
[1756412435996,0.008,112160.0,112150.0,1.43667434]
[1756412436194,0.008,112160.0,112150.0,1.68667434]
[1756412437400,0.005,112160.0,112150.0,1.68667434]
[1756412437597,0.003,112160.0,112150.0,0.38341288]
[1756412437905,0.01954,112160.0,112150.0,1.2146155]
[1756412438600,0.003,112160.0,112150.0,1.2146155]
[1756412441007,0.003,112160.0,112150.0,1.69581812]
[1756412442110,0.003,112160.0,112150.0,1.2046155]
[1756412442911,0.003,112160.0,112150.0,1.68581812]
[1756412443309,0.003,112160.0,112150.0,1.2046155]
[1756412444105,0.003,112160.0,112150.0,1.68581812]
[1756412447514,0.003,112160.0,112150.0,1.43581812]
[1756412449715,0.003,112160.0,112150.0,2.27949812]
[1756412450014,0.03927,112180.0,112170.0,0.1242554]
[1756412450217,0.39927,112180.0,112170.0,0.95545802]
[1756412451308,0.40127,112180.0,112170.0,0.60545802]
[1756412452317,0.37854,112180.0,112170.0,0.60545802]
[1756412452514,0.37854,112180.0,112170.0,0.60607802]
[1756412452915,0.40327,112180.0,112170.0,0.60607802]
[1756412453817,0.40327,112180.0,112170.0,0.94607802]
[1756412455020,0.40327,112180.0,112170.0,0.60607802]
[1756412455221,0.40327,112180.0,112170.0,0.95607802]
[1756412456714,0.40327,112180.0,112170.0,0.91607802]
[1756412456917,0.04327,112180.0,112170.0,0.91607802]
[1756412457319,0.04327,112180.0,112170.0,0.94607802]
[1756412457518,0.09327,112180.0,112170.0,0.94607802]